[Event "GER-ch Women Open 2019"]
[Site "Bodenmais"]
[Date "2019.08.01"]
[Round "6.1"]
[White "Von Herman, Brigitte"]
[Black "Ries, Jutta"]
[Result "1-0"]
[ECO "B04"]
[WhiteElo "2062"]
[BlackElo "1983"]
[Annotator "NA"]
[PlyCount "55"]
[EventDate "2019.07.27"]
[EventType "swiss"]
[EventCountry "GER"]
[SourceTitle "playchess.com"]
[Source "ChessBase"]
[SourceQuality "1"]
[TimeControl "40/5400+30:900+30"]

1. e4 {[%emt 0:00:00]} Nf6 {[%emt 0:00:00]} 2. e5 {[%emt 0:00:00]} Nd5 {[%emt 0:00:00]} 3. d4 {[%emt 0:00:23]} d6 {[%emt 0:00:09]} 4. Nf3 {[%emt 0:00:17]} dxe5 {[%emt 0:04:26]} 5. Nxe5 {[%emt 0:00:40]} c6 {[%emt 0:00:18]} 6. Qf3 {[%emt 0:17:27]} Nf6 {[%emt 0:08:54]} 7. Bc4 {[%emt 0:01:29]} e6 {[%emt 0:00:32]} 8. c3 {[%emt 0:04:42]} Nbd7 {[%emt 0:08:26]} 9. O-O {[%emt 0:03:20]} Bd6 {[%emt 0:27:32]} 10. Re1 {[%emt 0:00:52]} Nb6 {[%emt 0:07:11]} 11. Bb3 {[%emt 0:02:36]} Bd7 {[%emt 0:03:31]} 12. Qg3 {[%emt 0:04:29]} Bf8 {[%emt 0:24:34]} 13. Nd2 {[%emt 0:03:16]} Nbd5 {[%emt 0:03:34]} 14. c4 {[%emt 0:08:12]} Ne7 {[%emt 0:00:53]} 15. Ndf3 {[%emt 0:03:19]} Nf5 {[%emt 0:03:29]} 16. Qf4 {[%emt 0:03:58]} Bb4 {[%emt 0:00:01]} 17. Re2 {[%emt 0:03:16]} O-O {[%emt 0:00:24]} 18. Bc2 {[%emt 0:02:45]} g6 {[%emt 0:03:18]} 19. g4 {[%emt 0:03:55]} Ng7 {[%emt 0:01:22]} 20. Qh6 {[%emt 0:04:01]} Re8 {[%emt 0:00:33]} 21. Ng5 {[%emt 0:03:54]} Re7 {[%emt 0:00:26]} 22. Bf4 {[%emt 0:02:30]} Qf8 {[%emt 0:00:32]} 23. Nd3 {[%emt 0:04:22]} Ree8 {[%emt 0:00:42]} 24. Be5 {[%emt 0:01:20]} Ngh5 {[%emt 0:00:21]} 25. Qxf8+ {[%emt 0:00:30]} Bxf8 {[%emt 0:00:01]} 26. gxh5 {[%emt 0:00:18]} Nxh5 {[%emt 0:00:02]} 27. Ne4 {[%emt 0:01:20]} b6 {[%emt 0:00:49]} 28. Nf6+ {[%emt 0:01:34]} 1-0

[Event "GER-ch Women Open 2019"]
[Site "Bodenmais"]
[Date "2019.08.01"]
[Round "6.2"]
[White "Just, Anita"]
[Black "Sewald, Kathrin"]
[Result "1/2-1/2"]
[ECO "C41"]
[WhiteElo "1875"]
[BlackElo "2016"]
[Annotator "NA"]
[PlyCount "143"]
[EventDate "2019.07.27"]
[EventType "swiss"]
[EventCountry "GER"]
[SourceTitle "playchess.com"]
[Source "ChessBase"]
[SourceQuality "1"]
[TimeControl "40/5400+30:900+30"]

1. e4 {[%emt 0:00:00]} e5 {[%emt 0:00:00]} 2. Nf3 {[%emt 0:00:00]} d6 {[%emt 0:00:00]} 3. d4 {[%emt 0:00:00]} Qe7 {[%emt 0:00:00]} 4. dxe5 {[%emt 0:02:50]} dxe5 {[%emt 0:00:00]} 5. Qd5 {[%emt 0:07:28]} Nd7 {[%emt 0:01:14]} 6. Nc3 {[%emt 0:00:45]} Ngf6 {[%emt 0:01:34]} 7. Qc4 {[%emt 0:05:31]} c6 {[%emt 0:00:50]} 8. Be3 {[%emt 0:06:20]} Ng4 {[%emt 0:03:14]} 9. O-O-O {[%emt 0:06:11]} Nxe3 {[%emt 0:00:15]} 10. fxe3 {[%emt 0:00:05]} Nb6 {[%emt 0:00:12]} 11. Qd3 {[%emt 0:01:10]} f6 {[%emt 0:00:37]} 12. Nh4 {[%emt 0:02:24]} g6 {[%emt 0:01:18]} 13. Nf3 {[%emt 0:05:32]} Bd7 {[%emt 0:01:53]} 14. Nd2 {[%emt 0:06:15]} Bh6 {[%emt 0:06:10]} 15. Kb1 {[%emt 0:01:24]} O-O-O {[%emt 0:02:05]} 16. Qe2 {[%emt 0:11:12]} Be6 {[%emt 0:05:40]} 17. Qf2 {[%emt 0:02:29]} f5 {[%emt 0:03:55]} 18. Bd3 {[%emt 0:05:25]} Rhf8 {[%emt 0:01:07]} 19. Qe2 {[%emt 0:03:49]} Qc5 {[%emt 0:05:02]} 20. exf5 {[%emt 0:07:20]} gxf5 {[%emt 0:00:24]} 21. e4 {[%emt 0:04:39]} f4 {[%emt 0:00:24]} 22. Nb3 {[%emt 0:03:14]} Qe7 {[%emt 0:02:26]} 23. Qh5 {[%emt 0:01:25]} Bg5 {[%emt 0:09:30]} 24. Rhf1 {[%emt 0:04:25]} Rg8 {[%emt 0:06:06]} 25. Be2 {[%emt 0:02:07]} Bf6 {[%emt 0:00:58]} 26. Rxd8+ {[%emt 0:01:08]} Kxd8 {[%emt 0:00:25]} 27. Qf3 {[%emt 0:01:01]} Bh4 {[%emt 0:08:03]} 28. Rd1+ {[%emt 0:02:37]} Kc7 {[%emt 0:01:25]} 29. Qf1 {[%emt 0:00:55]} Qf8 {[%emt 0:06:51]} 30. Nd2 {[%emt 0:01:14]} Qf7 {[%emt 0:05:22]} 31. Nf3 {[%emt 0:01:19]} Bf6 {[%emt 0:00:13]} 32. Qf2 {[%emt 0:00:39]} Qe7 {[%emt 0:03:27]} 33. Qf1 {[%emt 0:00:46]} Qb4 {[%emt 0:00:42]} 34. Qe1 {[%emt 0:00:57]} a5 {[%emt 0:00:49]} 35. a3 {[%emt 0:00:52]} Qc5 {[%emt 0:01:01]} 36. g3 {[%emt 0:01:09]} Nc4 {[%emt 0:14:58]} 37. Bxc4 {[%emt 0:00:38]} Qxc4 {[%emt 0:01:04]} 38. Nd2 {[%emt 0:01:02]} Qc5 {[%emt 0:05:15]} 39. Na4 {[%emt 0:00:44]} Qd4 {[%emt 0:01:09]} 40. Nc3 {[%emt 0:00:44]} Qa7 {[%emt 0:02:31]} 41. Nf3 {[%emt 0:04:21]} fxg3 {[%emt 0:04:42]} 42. hxg3 {[%emt 0:00:05]} b5 {[%emt 0:00:54]} 43. Qh1 {[%emt 0:00:56]} Rxg3 {[%emt 0:04:02]} 44. Qxh7+ {[%emt 0:00:09]} Kb6 {[%emt 0:00:07]} 45. Qxa7+ {[%emt 0:03:26]} Kxa7 {[%emt 0:00:05]} 46. Rd6 {[%emt 0:00:41]} Rxf3 {[%emt 0:01:13]} 47. Rxe6 {[%emt 0:00:05]} Kb7 {[%emt 0:00:31]} 48. Rd6 {[%emt 0:05:40]} Kc7 {[%emt 0:00:26]} 49. Rd1 {[%emt 0:00:44]} Re3 {[%emt 0:00:57]} 50. Rd3 {[%emt 0:00:37]} Re1+ {[%emt 0:00:51]} 51. Rd1 {[%emt 0:00:35]} Bh4 {[%emt 0:02:21]} 52. b3 {[%emt 0:02:59]} b4 {[%emt 0:03:28]} 53. axb4 {[%emt 0:00:11]} axb4 {[%emt 0:00:16]} 54. Rxe1 {[%emt 0:00:30]} Bxe1 {[%emt 0:00:05]} 55. Ne2 {[%emt 0:00:49]} Bd2 {[%emt 0:02:06]} 56. Kb2 {[%emt 0:00:20]} Kb6 {[%emt 0:00:51]} 57. c3 {[%emt 0:01:31]} bxc3+ {[%emt 0:00:15]} 58. Nxc3 {[%emt 0:00:05]} Bxc3+ {[%emt 0:00:08]} 59. Kxc3 {[%emt 0:00:03]} Kb5 {[%emt 0:00:08]} 60. b4 {[%emt 0:01:04]} c5 {[%emt 0:00:20]} 61. bxc5 {[%emt 0:00:18]} Kxc5 {[%emt 0:00:05]} 62. Kd3 {[%emt 0:00:29]} Kb4 {[%emt 0:00:05]} 63. Kd2 {[%emt 0:01:01]} Kb3 {[%emt 0:00:14]} 64. Kd3 {[%emt 0:00:06]} Kb4 {[%emt 0:00:14]} 65. Kd2 {[%emt 0:00:04]} Kc4 {[%emt 0:00:03]} 66. Ke3 {[%emt 0:00:53]} Kc3 {[%emt 0:00:14]} 67. Ke2 {[%emt 0:00:25]} Kd4 {[%emt 0:00:13]} 68. Kd2 {[%emt 0:00:07]} Kxe4 {[%emt 0:00:03]} 69. Ke2 {[%emt 0:00:05]} Kd4 {[%emt 0:00:05]} 70. Kd2 {[%emt 0:00:24]} e4 {[%emt 0:00:09]} 71. Ke2 {[%emt 0:00:08]} e3 {[%emt 0:00:07]} 72. Ke1 {[%emt 0:02:59]} 1/2-1/2

[Event "GER-ch Women Open 2019"]
[Site "Bodenmais"]
[Date "2019.08.01"]
[Round "6.3"]
[White "Peglau, Sarah"]
[Black "Peglau, Dora"]
[Result "1-0"]
[ECO "A00"]
[WhiteElo "1525"]
[BlackElo "1300"]
[Annotator "NA"]
[PlyCount "54"]
[EventDate "2019.07.27"]
[EventType "swiss"]
[EventCountry "GER"]
[SourceTitle "playchess.com"]
[Source "ChessBase"]
[SourceQuality "1"]
[TimeControl "40/5400+30:900+30"]

1. g3 {[%emt 0:00:00]} g6 {[%emt 0:00:00]} 2. Bg2 {[%emt 0:00:28]} Bg7 {[%emt 0:00:02]} 3. d4 {[%emt 0:02:14]} d5 {[%emt 0:00:27]} 4. Nf3 {[%emt 0:03:31]} Nf6 {[%emt 0:00:20]} 5. c4 {[%emt 0:01:39]} c6 {[%emt 0:01:17]} 6. Nc3 {[%emt 0:04:49]} dxc4 {[%emt 0:03:01]} 7. O-O {[%emt 0:03:50]} Nd5 {[%emt 0:08:45]} 8. Qc2 {[%emt 0:05:17]} O-O {[%emt 0:01:54]} 9. Rd1 {[%emt 0:07:11]} b5 {[%emt 0:17:33]} 10. a4 {[%emt 0:12:56]} Nxc3 {[%emt 0:01:10]} 11. Qxc3 {[%emt 0:01:19]} Bd7 {[%emt 0:00:36]} 12. axb5 {[%emt 0:04:20]} Be6 {[%emt 0:06:29]} 13. Ng5 {[%emt 0:05:57]} Bd7 {[%emt 0:02:38]} 14. Qxc4 {[%emt 0:04:39]} h6 {[%emt 0:01:21]} 15. bxc6 {[%emt 0:01:43]} Nxc6 {[%emt 0:01:51]} 16. Bxc6 {[%emt 0:05:15]} Rc8 {[%emt 0:01:44]} 17. d5 {[%emt 0:01:56]} hxg5 {[%emt 0:00:22]} 18. Bxg5 {[%emt 0:02:35]} Bxc6 {[%emt 0:05:27]} 19. dxc6 {[%emt 0:00:15]} Qc7 {[%emt 0:00:19]} 20. Ra6 {[%emt 0:09:48]} Bxb2 {[%emt 0:02:33]} 21. Qb4 {[%emt 0:04:05]} Bf6 {[%emt 0:01:11]} 22. Bxf6 {[%emt 0:02:13]} exf6 {[%emt 0:00:16]} 23. Rd7 {[%emt 0:00:40]} Qe5 {[%emt 0:01:20]} 24. Qe7 {[%emt 0:01:19]} Qb5 {[%emt 0:02:18]} 25. Raxa7 {[%emt 0:02:49]} Qxc6 {[%emt 0:01:16]} 26. Rd6 {[%emt 0:02:25]} Qc1+ {[%emt 0:00:41]} 27. Kg2 {[%emt 0:00:02]} f5 {[%emt 0:00:36]} 1-0

[Event "GER-ch Women Open 2019"]
[Site "Bodenmais"]
[Date "2019.08.01"]
[Round "6.4"]
[White "Wolff, Beate"]
[Black "Steckmann, Kerstin"]
[Result "1/2-1/2"]
[ECO "A13"]
[WhiteElo "1238"]
[BlackElo "1653"]
[Annotator "NA"]
[PlyCount "37"]
[EventDate "2019.07.27"]
[EventType "swiss"]
[EventCountry "GER"]
[SourceTitle "playchess.com"]
[Source "ChessBase"]
[SourceQuality "1"]
[TimeControl "40/5400+30:900+30"]

1. c4 {[%emt 0:00:00]} e6 {[%emt 0:00:18]} 2. Nf3 {[%emt 0:00:45]} Nf6 {[%emt 0:00:16]} 3. g3 {[%emt 0:00:24]} c6 {[%emt 0:01:01]} 4. Bg2 {[%emt 0:00:56]} d5 {[%emt 0:01:26]} 5. b3 {[%emt 0:01:04]} Nbd7 {[%emt 0:04:00]} 6. Bb2 {[%emt 0:01:11]} Qb6 {[%emt 0:00:56]} 7. Bd4 {[%emt 0:09:39]} c5 {[%emt 0:05:33]} 8. Be3 {[%emt 0:03:53]} dxc4 {[%emt 0:05:37]} 9. bxc4 {[%emt 0:02:10]} Ne4 {[%emt 0:12:06]} 10. O-O {[%emt 0:03:33]} g6 {[%emt 0:00:46]} 11. Qb3 {[%emt 0:10:28]} Bg7 {[%emt 0:04:01]} 12. Nc3 {[%emt 0:01:02]} Qxb3 {[%emt 0:00:17]} 13. axb3 {[%emt 0:00:37]} Nxc3 {[%emt 0:00:05]} 14. dxc3 {[%emt 0:00:38]} Bxc3 {[%emt 0:00:02]} 15. Rad1 {[%emt 0:05:07]} O-O {[%emt 0:03:47]} 16. Ng5 {[%emt 0:06:41]} Rb8 {[%emt 0:01:08]} 17. Ne4 {[%emt 0:01:27]} Bb4 {[%emt 0:00:55]} 18. Nd6 {[%emt 0:03:11]} Nb6 {[%emt 0:02:17]} 19. Bf4 {[%emt 0:04:39]} 1/2-1/2

[Event "GER-ch Women Open 2019"]
[Site "Bodenmais"]
[Date "2019.08.01"]
[Round "6.5"]
[White "Peglau, Lorena"]
[Black "Navarro Ortega-Villaizan, Lucia"]
[Result "1-0"]
[ECO "A04"]
[WhiteElo "1108"]
[BlackElo "1113"]
[Annotator "NA"]
[PlyCount "100"]
[EventDate "2019.07.27"]
[EventType "swiss"]
[EventCountry "GER"]
[SourceTitle "playchess.com"]
[Source "ChessBase"]
[SourceQuality "1"]
[TimeControl "40/5400+30:900+30"]

1. Nf3 {[%emt 0:00:00]} c5 {[%emt 0:00:00]} 2. e3 {[%emt 0:00:00]} d5 {[%emt 0:01:40]} 3. d4 {[%emt 0:00:28]} e6 {[%emt 0:00:26]} 4. Be2 {[%emt 0:01:15]} Nc6 {[%emt 0:00:26]} 5. Bd2 {[%emt 0:01:21]} Nf6 {[%emt 0:01:33]} 6. c4 {[%emt 0:00:35]} Bd6 {[%emt 0:02:05]} 7. Nc3 {[%emt 0:00:28]} cxd4 {[%emt 0:01:04]} 8. exd4 {[%emt 0:00:31]} O-O {[%emt 0:01:37]} 9. O-O {[%emt 0:00:20]} Ne4 {[%emt 0:00:35]} 10. Bd3 {[%emt 0:00:39]} Nxc3 {[%emt 0:01:57]} 11. Bxc3 Qf6 {[%emt 0:02:00]} 12. Qc2 {[%emt 0:01:18]} Qh6 {[%emt 0:02:00]} 13. h3 {[%emt 0:00:47]} dxc4 {[%emt 0:01:46]} 14. Bxc4 {[%emt 0:00:47]} Re8 {[%emt 0:02:05]} 15. Bd2 {[%emt 0:00:27]} Qg6 {[%emt 0:01:13]} 16. Qxg6 {[%emt 0:00:32]} fxg6 {[%emt 0:00:33]} 17. Rfe1 {[%emt 0:01:06]} Bd7 {[%emt 0:03:36]} 18. d5 {[%emt 0:00:43]} exd5 {[%emt 0:02:32]} 19. Bxd5+ {[%emt 0:00:21]} Kh8 {[%emt 0:01:26]} 20. Ng5 {[%emt 0:01:11]} Ne5 {[%emt 0:09:14]} 21. Bc3 {[%emt 0:00:43]} Bc6 {[%emt 0:04:46]} 22. Bb3 {[%emt 0:02:03]} Rad8 {[%emt 0:08:57]} 23. Bxe5 {[%emt 0:00:30]} Bxe5 {[%emt 0:05:48]} 24. Nf7+ {[%emt 0:00:21]} Kg8 {[%emt 0:00:08]} 25. Nxd8+ {[%emt 0:00:38]} Kf8 {[%emt 0:00:37]} 26. Nxc6 {[%emt 0:00:17]} bxc6 27. Rac1 {[%emt 0:00:38]} h6 {[%emt 0:01:18]} 28. Rc2 {[%emt 0:00:35]} Bh2+ {[%emt 0:00:32]} 29. Kf1 {[%emt 0:00:18]} Be5 {[%emt 0:01:13]} 30. Rxc6 {[%emt 0:01:00]} g5 {[%emt 0:00:26]} 31. Rc5 {[%emt 0:01:11]} Bxb2 {[%emt 0:00:45]} 32. Rxe8+ {[%emt 0:00:18]} Kxe8 {[%emt 0:00:05]} 33. Ba4+ {[%emt 0:00:39]} Ke7 {[%emt 0:00:34]} 34. Ke2 {[%emt 0:00:21]} Kd6 {[%emt 0:00:29]} 35. Rc2 {[%emt 0:00:16]} Ba3 {[%emt 0:00:26]} 36. Kd3 {[%emt 0:00:33]} Bc5 {[%emt 0:00:15]} 37. Ke4 {[%emt 0:00:39]} Bxf2 {[%emt 0:00:19]} 38. Rxf2 {[%emt 0:00:23]} Ke6 {[%emt 0:00:03]} 39. Bb3+ {[%emt 0:00:45]} Kd6 {[%emt 0:00:08]} 40. Kf5 {[%emt 0:00:21]} g4 {[%emt 0:00:02]} 41. Kxg4 {[%emt 0:15:33]} h5+ {[%emt 0:15:03]} 42. Kxh5 {[%emt 0:00:21]} a5 {[%emt 0:00:12]} 43. g4 {[%emt 0:00:37]} g6+ {[%emt 0:00:14]} 44. Kxg6 {[%emt 0:00:12]} a4 {[%emt 0:00:01]} 45. Bxa4 {[%emt 0:00:18]} Ke7 {[%emt 0:00:04]} 46. h4 {[%emt 0:00:19]} Kd8 {[%emt 0:00:01]} 47. h5 {[%emt 0:00:17]} Ke7 {[%emt 0:00:02]} 48. h6 {[%emt 0:00:32]} Kd8 {[%emt 0:00:13]} 49. Rf7 {[%emt 0:00:37]} Kc8 {[%emt 0:00:05]} 50. h7 {[%emt 0:00:22]} Kd8 1-0

[Event "GER-ch Women Open 2019"]
[Site "Bodenmais"]
[Date "2019.08.01"]
[Round "6.6"]
[White "Pribylova, Ruzena"]
[Black "Navarro Ortega-Villaizan, Alba"]
[Result "1-0"]
[ECO "B00"]
[WhiteElo "1867"]
[BlackElo "700"]
[Annotator "NA"]
[PlyCount "45"]
[EventDate "2019.07.27"]
[EventType "swiss"]
[EventCountry "GER"]
[SourceTitle "playchess.com"]
[Source "ChessBase"]
[SourceQuality "1"]
[TimeControl "40/5400+30:900+30"]

1. e4 {[%emt 0:00:00]} Nc6 {[%emt 0:00:00]} 2. d4 {[%emt 0:00:00]} e5 {[%emt 0:01:29]} 3. Nf3 {[%emt 0:00:49]} d6 {[%emt 0:02:07]} 4. dxe5 {[%emt 0:01:32]} Qd7 {[%emt 0:03:45]} 5. exd6 {[%emt 0:00:40]} cxd6 {[%emt 0:01:04]} 6. Nc3 {[%emt 0:00:18]} Nf6 {[%emt 0:02:03]} 7. Bb5 {[%emt 0:00:32]} a6 {[%emt 0:01:28]} 8. Be2 {[%emt 0:04:54]} Qg4 {[%emt 0:02:59]} 9. O-O {[%emt 0:00:49]} Nxe4 {[%emt 0:01:35]} 10. Nd5 {[%emt 0:02:13]} Qd7 {[%emt 0:02:36]} 11. Nb6 {[%emt 0:00:21]} Qg4 {[%emt 0:03:01]} 12. Nxa8 {[%emt 0:00:12]} Nc5 {[%emt 0:01:07]} 13. Nc7+ {[%emt 0:00:17]} Kd8 {[%emt 0:00:36]} 14. Nd5 {[%emt 0:00:15]} Be6 {[%emt 0:01:11]} 15. Be3 {[%emt 0:03:36]} Ne7 {[%emt 0:02:05]} 16. Nxe7 {[%emt 0:01:27]} Bxe7 {[%emt 0:00:38]} 17. Bxc5 {[%emt 0:00:13]} Bf5 {[%emt 0:01:59]} 18. Bxd6 {[%emt 0:04:52]} Qg6 {[%emt 0:00:49]} 19. Bxe7+ {[%emt 0:01:45]} Kxe7 {[%emt 0:00:33]} 20. Bd3 {[%emt 0:01:16]} Rd8 {[%emt 0:00:59]} 21. Qe2+ {[%emt 0:01:47]} Kf6 {[%emt 0:00:49]} 22. Bxf5 {[%emt 0:00:30]} Qxf5 {[%emt 0:00:16]} 23. Rfe1 {[%emt 0:00:28]} 1-0

[Event "GER-ch Women Open 2019"]
[Site "Bodenmais"]
[Date "2019.08.01"]
[Round "6.7"]
[White "Peglau, Adelheid"]
[Black "Weinmann, Helene"]
[Result "0-1"]
[ECO "C41"]
[WhiteElo "1187"]
[BlackElo "1520"]
[Annotator "NA"]
[PlyCount "40"]
[EventDate "2019.07.27"]
[EventType "swiss"]
[EventCountry "GER"]
[SourceTitle "playchess.com"]
[Source "ChessBase"]
[SourceQuality "1"]
[TimeControl "40/5400+30:900+30"]

1. e4 {[%emt 0:00:00]} e5 {[%emt 0:00:00]} 2. Nf3 {[%emt 0:00:00]} d6 {[%emt 0:00:02]} 3. Nc3 {[%emt 0:00:25]} Nf6 {[%emt 0:00:31]} 4. d4 {[%emt 0:03:26]} exd4 {[%emt 0:00:25]} 5. Nxd4 {[%emt 0:00:32]} Be7 {[%emt 0:00:16]} 6. Bg5 {[%emt 0:08:09]} O-O {[%emt 0:00:24]} 7. Bc4 {[%emt 0:03:05]} Nbd7 {[%emt 0:00:56]} 8. O-O {[%emt 0:14:14]} Nc5 {[%emt 0:01:30]} 9. Re1 {[%emt 0:01:44]} Ne6 {[%emt 0:00:25]} 10. Nf5 {[%emt 0:01:57]} Nxg5 {[%emt 0:00:27]} 11. Qd2 {[%emt 0:07:39]} Ne6 {[%emt 0:04:10]} 12. Qe2 {[%emt 0:06:21]} Nf4 {[%emt 0:01:18]} 13. Qf3 {[%emt 0:00:38]} Ng6 {[%emt 0:00:13]} 14. Rad1 {[%emt 0:03:50]} Qe8 {[%emt 0:02:12]} 15. Nb5 {[%emt 0:05:19]} Bd8 {[%emt 0:00:41]} 16. Bb3 {[%emt 0:09:25]} Qxb5 {[%emt 0:00:35]} 17. h3 {[%emt 0:00:30]} Bxf5 {[%emt 0:00:50]} 18. exf5 {[%emt 0:00:13]} Nh4 {[%emt 0:00:27]} 19. Qg3 {[%emt 0:02:06]} Nxf5 {[%emt 0:00:33]} 20. Rd3 {[%emt 0:01:19]} Nxg3 0-1

[Event "GER-ch Women Open 2019"]
[Site "Bodenmais"]
[Date "2019.08.02"]
[Round "7.1"]
[White "Steckmann, Kerstin"]
[Black "Von Herman, Brigitte"]
[Result "0-1"]
[ECO "E21"]
[WhiteElo "1653"]
[BlackElo "2062"]
[Annotator "NA"]
[PlyCount "41"]
[EventDate "2019.07.27"]
[EventType "swiss"]
[EventCountry "GER"]
[SourceTitle "playchess.com"]
[Source "ChessBase"]
[SourceQuality "1"]
[TimeControl "40/5400+30:900+30"]

1. d4 {[%emt 0:00:00]} Nf6 {[%emt 0:00:00]} 2. c4 {[%emt 0:00:00]} e6 {[%emt 0:00:00]} 3. Nf3 {[%emt 0:00:00]} Bb4+ {[%emt 0:00:16]} 4. Nc3 {[%emt 0:00:00]} Qe7 {[%emt 0:00:19]} 5. a3 {[%emt 0:03:56]} Bxc3+ {[%emt 0:00:13]} 6. bxc3 {[%emt 0:00:01]} b6 {[%emt 0:00:20]} 7. e3 {[%emt 0:07:36]} Nc6 {[%emt 0:01:08]} 8. Be2 {[%emt 0:00:34]} Ba6 {[%emt 0:02:03]} 9. a4 {[%emt 0:01:11]} Ne4 {[%emt 0:06:45]} 10. Qc2 {[%emt 0:01:09]} f5 {[%emt 0:00:51]} 11. Ba3 {[%emt 0:05:54]} d6 {[%emt 0:02:01]} 12. d5 {[%emt 0:03:45]} Nd8 {[%emt 0:16:12]} 13. Nd4 {[%emt 0:08:24]} g6 {[%emt 0:09:00]} 14. Bf3 {[%emt 0:04:59]} Ng5 {[%emt 0:12:00]} 15. Qd2 {[%emt 0:04:14]} e5 {[%emt 0:05:43]} 16. Nb5 {[%emt 0:01:50]} Bb7 {[%emt 0:01:23]} 17. Bc1 {[%emt 0:00:56]} a6 {[%emt 0:00:24]} 18. Na3 {[%emt 0:00:01]} a5 {[%emt 0:00:26]} 19. Be2 {[%emt 0:01:41]} Ne4 {[%emt 0:01:20]} 20. Qc2 {[%emt 0:00:51]} Nf7 {[%emt 0:02:55]} 21. Bf1 0-1

[Event "GER-ch Women Open 2019"]
[Site "Bodenmais"]
[Date "2019.08.02"]
[Round "7.2"]
[White "Sewald, Kathrin"]
[Black "Peglau, Sarah"]
[Result "1-0"]
[ECO "B10"]
[WhiteElo "2016"]
[BlackElo "1525"]
[Annotator "NA"]
[PlyCount "51"]
[EventDate "2019.07.27"]
[EventType "swiss"]
[EventCountry "GER"]
[SourceTitle "playchess.com"]
[Source "ChessBase"]
[SourceQuality "1"]
[TimeControl "40/5400+30:900+30"]

1. e4 {[%emt 0:00:00]} c6 {[%emt 0:00:00]} 2. d3 {[%emt 0:00:00]} e5 {[%emt 0:00:00]} 3. Nf3 {[%emt 0:00:00]} d6 {[%emt 0:00:00]} 4. Nbd2 {[%emt 0:00:00]} Nf6 {[%emt 0:00:21]} 5. g3 {[%emt 0:00:22]} g6 {[%emt 0:00:58]} 6. Bg2 {[%emt 0:00:06]} Bg7 {[%emt 0:00:10]} 7. O-O {[%emt 0:00:09]} O-O {[%emt 0:01:20]} 8. b3 {[%emt 0:01:01]} Re8 {[%emt 0:16:39]} 9. Bb2 {[%emt 0:01:55]} b5 {[%emt 0:05:12]} 10. a4 {[%emt 0:01:40]} b4 {[%emt 0:12:15]} 11. d4 {[%emt 0:08:20]} exd4 {[%emt 0:05:13]} 12. Nxd4 {[%emt 0:00:32]} Bb7 {[%emt 0:02:06]} 13. Re1 {[%emt 0:12:58]} c5 {[%emt 0:14:02]} 14. Nb5 {[%emt 0:00:32]} a6 {[%emt 0:11:05]} 15. Nxd6 {[%emt 0:17:36]} Qxd6 {[%emt 0:00:29]} 16. e5 {[%emt 0:00:12]} Qd7 {[%emt 0:01:04]} 17. Bxb7 {[%emt 0:05:16]} Qxb7 {[%emt 0:00:03]} 18. exf6 {[%emt 0:00:08]} Rxe1+ {[%emt 0:00:09]} 19. Qxe1 {[%emt 0:00:05]} Bf8 {[%emt 0:02:47]} 20. Nc4 {[%emt 0:08:31]} Nd7 {[%emt 0:01:31]} 21. Rd1 {[%emt 0:03:18]} Qc6 {[%emt 0:02:38]} 22. Qe3 {[%emt 0:07:57]} Nxf6 {[%emt 0:01:32]} 23. Na5 {[%emt 0:00:53]} Qb6 {[%emt 0:02:49]} 24. Qf3 {[%emt 0:01:30]} Nh5 {[%emt 0:07:28]} 25. Qxa8 {[%emt 0:00:42]} Qxa5 {[%emt 0:00:15]} 26. Rd8 1-0